[Event "55th Rubinstein Memorial-C 2019"]
[Site "Polanica-Zdroj"]
[Date "2019.08.23"]
[Round "7.16"]
[White "Maslanka, Wojciech"]
[Black "Rakita, Efim"]
[Result "0-1"]
[ECO "C57"]
[WhiteElo "1594"]
[BlackElo "1960"]
[Annotator "NA"]
[PlyCount "114"]
[EventDate "2019.08.17"]
[EventType "swiss"]
[EventCountry "POL"]
[SourceTitle "playchess.com"]
[Source "ChessBase"]
[SourceQuality "1"]
[TimeControl "40/5400+30:1800+30"]

1. e4 {[%emt 0:00:00]} e5 {[%emt 0:00:00]} 2. Nf3 {[%emt 0:00:00]} Nc6 {[%emt 0:00:00]} 3. Bc4 {[%emt 0:00:06]} Nf6 {[%emt 0:00:05]} 4. Ng5 {[%emt 0:00:05]} d5 {[%emt 0:00:39]} 5. exd5 {[%emt 0:00:07]} Nxd5 {[%emt 0:00:17]} 6. Nxf7 {[%emt 0:00:03]} Kxf7 {[%emt 0:00:32]} 7. Qf3+ {[%emt 0:00:52]} Ke6 {[%emt 0:00:35]} 8. Nc3 Ncb4 {[%emt 0:01:00]} 9. d4 {[%emt 0:00:06]} c6 {[%emt 0:01:49]} 10. Qe4 {[%emt 0:02:08]} Kd7 {[%emt 0:02:43]} 11. Nxd5 {[%emt 0:07:25]} cxd5 {[%emt 0:01:22]} 12. Bxd5 {[%emt 0:01:16]} Nxd5 {[%emt 0:00:27]} 13. Qxd5+ {[%emt 0:00:06]} Kc7 {[%emt 0:00:08]} 14. Qc4+ {[%emt 0:04:45]} Kb8 {[%emt 0:00:58]} 15. Be3 {[%emt 0:01:27]} Qc7 {[%emt 0:04:30]} 16. Qxc7+ {[%emt 0:02:04]} Kxc7 {[%emt 0:00:02]} 17. dxe5 {[%emt 0:00:06]} Be7 {[%emt 0:01:06]} 18. O-O-O {[%emt 0:01:50]} Be6 {[%emt 0:03:12]} 19. Rd3 {[%emt 0:00:52]} Rad8 {[%emt 0:02:58]} 20. Rc3+ {[%emt 0:01:36]} Kb8 {[%emt 0:00:05]} 21. a3 {[%emt 0:00:09]} Rc8 {[%emt 0:00:33]} 22. Rd3 {[%emt 0:00:51]} Rhd8 {[%emt 0:00:17]} 23. Rhd1 {[%emt 0:00:44]} Rxd3 {[%emt 0:01:41]} 24. Rxd3 {[%emt 0:00:06]} Rd8 {[%emt 0:04:29]} 25. h3 {[%emt 0:03:09]} Bf5 {[%emt 0:00:25]} 26. Rxd8+ {[%emt 0:03:03]} Bxd8 {[%emt 0:00:01]} 27. f3 {[%emt 0:00:12]} a6 {[%emt 0:01:32]} 28. g4 {[%emt 0:00:13]} Be6 {[%emt 0:00:12]} 29. Kd2 {[%emt 0:02:00]} Kc7 {[%emt 0:00:14]} 30. b3 {[%emt 0:00:12]} Be7 {[%emt 0:00:51]} 31. a4 {[%emt 0:00:29]} b5 {[%emt 0:01:01]} 32. axb5 {[%emt 0:01:47]} axb5 {[%emt 0:00:01]} 33. Kd3 {[%emt 0:00:59]} Kc6 {[%emt 0:01:35]} 34. c4 {[%emt 0:00:10]} g6 {[%emt 0:01:41]} 35. Bf2 {[%emt 0:02:47]} b4 {[%emt 0:02:22]} 36. Ke4 {[%emt 0:03:56]} g5 {[%emt 0:00:36]} 37. f4 {[%emt 0:12:54]} gxf4 {[%emt 0:00:07]} 38. Kxf4 {[%emt 0:00:09]} Bf7 {[%emt 0:01:10]} 39. h4 {[%emt 0:07:25]} Bg6 {[%emt 0:00:43]} 40. h5 {[%emt 0:00:47]} Bc2 {[%emt 0:00:19]} 41. g5 {[%emt 0:30:05]} Bf8 {[%emt 0:31:57]} 42. Be1 {[%emt 0:01:15]} Bxb3 {[%emt 0:05:02]} 43. Kf5 {[%emt 0:00:43]} Bxc4 {[%emt 0:07:16]} 44. e6 {[%emt 0:00:18]} Be7 {[%emt 0:01:36]} 45. Bxb4 {[%emt 0:08:30]} Bd3+ {[%emt 0:03:06]} 46. Ke5 {[%emt 0:00:32]} Bxg5 {[%emt 0:00:49]} 47. Bf8 {[%emt 0:00:58]} Kc7 {[%emt 0:00:58]} 48. Bg7 {[%emt 0:00:57]} Be7 {[%emt 0:05:27]} 49. Bh8 {[%emt 0:00:48]} Kd8 {[%emt 0:00:25]} 50. Bg7 {[%emt 0:00:57]} Ke8 {[%emt 0:00:07]} 51. Kd5 {[%emt 0:02:12]} Be2 {[%emt 0:00:48]} 52. h6 {[%emt 0:00:01]} Bg5 {[%emt 0:00:26]} 53. Kd6 {[%emt 0:00:11]} Bg4 {[%emt 0:00:38]} 54. Kd5 {[%emt 0:00:30]} Ke7 {[%emt 0:00:17]} 55. Ke5 {[%emt 0:00:32]} Bxe6 {[%emt 0:00:19]} 56. Bf8+ {[%emt 0:00:06]} Kf7 {[%emt 0:00:07]} 57. Bg7 {[%emt 0:00:13]} Bc8 {[%emt 0:00:16]} 0-1

[Event "55th Rubinstein Memorial-C 2019"]
[Site "Polanica-Zdroj"]
[Date "2019.08.23"]
[Round "7.17"]
[White "Pisarek, Elzbieta"]
[Black "Burdzicki, Stanislaw"]
[Result "1-0"]
[ECO "B47"]
[WhiteElo "1581"]
[BlackElo "1785"]
[Annotator "NA"]
[PlyCount "102"]
[EventDate "2019.08.17"]
[EventType "swiss"]
[EventCountry "POL"]
[SourceTitle "playchess.com"]
[Source "ChessBase"]
[SourceQuality "1"]
[TimeControl "40/5400+30:1800+30"]

1. e4 {[%emt 0:00:00]} c5 {[%emt 0:04:44]} 2. Nf3 {[%emt 0:00:00]} e6 {[%emt 0:00:11]} 3. d4 {[%emt 0:00:00]} cxd4 {[%emt 0:00:05]} 4. Nxd4 {[%emt 0:00:00]} Nc6 {[%emt 0:00:03]} 5. Nc3 {[%emt 0:00:00]} Qc7 {[%emt 0:00:07]} 6. g3 {[%emt 0:00:35]} a6 {[%emt 0:00:29]} 7. Bg2 {[%emt 0:00:52]} d6 {[%emt 0:00:06]} 8. Nxc6 {[%emt 0:01:00]} bxc6 {[%emt 0:04:01]} 9. O-O {[%emt 0:00:47]} Nf6 {[%emt 0:06:04]} 10. Na4 {[%emt 0:02:05]} d5 {[%emt 0:06:43]} 11. exd5 {[%emt 0:19:50]} cxd5 {[%emt 0:02:10]} 12. c4 {[%emt 0:06:08]} Bb7 {[%emt 0:03:08]} 13. Be3 {[%emt 0:10:57]} Be7 {[%emt 0:23:59]} 14. Rc1 {[%emt 0:06:35]} dxc4 {[%emt 0:05:17]} 15. Bxb7 {[%emt 0:02:53]} Qxb7 {[%emt 0:02:42]} 16. Nb6 {[%emt 0:00:33]} Rd8 {[%emt 0:00:42]} 17. Qa4+ {[%emt 0:00:34]} Kf8 {[%emt 0:03:40]} 18. Rxc4 {[%emt 0:05:19]} h5 {[%emt 0:02:13]} 19. Rfc1 {[%emt 0:19:34]} Ng4 {[%emt 0:07:10]} 20. Rc7 {[%emt 0:07:44]} Qf3 {[%emt 0:00:41]} 21. R7c3 {[%emt 0:11:45]} Kg8 {[%emt 0:17:56]} 22. Bc5 {[%emt 0:00:57]} Qb7 {[%emt 0:05:44]} 23. Bxe7 {[%emt 0:00:23]} Qxe7 {[%emt 0:00:33]} 24. Qxa6 {[%emt 0:01:31]} Rd2 {[%emt 0:01:31]} 25. R3c2 {[%emt 0:00:32]} Qg5 {[%emt 0:00:56]} 26. Qc4 {[%emt 0:01:10]} g6 {[%emt 0:01:03]} 27. Rxd2 {[%emt 0:00:18]} Qxd2 {[%emt 0:00:08]} 28. Qc2 {[%emt 0:00:07]} Qd4 {[%emt 0:00:25]} 29. Nc4 {[%emt 0:00:30]} Kh7 {[%emt 0:00:47]} 30. Qd2 {[%emt 0:00:34]} Qa7 {[%emt 0:00:37]} 31. a3 {[%emt 0:00:21]} Rd8 {[%emt 0:00:19]} 32. Qe2 {[%emt 0:00:26]} Rd4 {[%emt 0:00:48]} 33. h3 {[%emt 0:00:37]} Nf6 {[%emt 0:00:24]} 34. Qf3 {[%emt 0:01:12]} Kg7 {[%emt 0:00:40]} 35. b4 {[%emt 0:00:34]} Qc7 {[%emt 0:00:36]} 36. Qc3 {[%emt 0:00:40]} e5 {[%emt 0:00:26]} 37. Ne3 {[%emt 0:00:35]} Qa7 {[%emt 0:00:40]} 38. b5 {[%emt 0:00:33]} h4 {[%emt 0:00:23]} 39. g4 {[%emt 0:00:31]} Ra4 {[%emt 0:00:41]} 40. Nc4 {[%emt 0:00:33]} Qd4 {[%emt 0:00:35]} 41. Nxe5 {[%emt 0:30:27]} Qxc3 {[%emt 0:30:28]} 42. Rxc3 {[%emt 0:00:03]} Nd5 {[%emt 0:00:04]} 43. Rb3 {[%emt 0:00:23]} Re4 {[%emt 0:00:41]} 44. Nd3 {[%emt 0:00:28]} Re6 {[%emt 0:00:28]} 45. a4 {[%emt 0:00:20]} Re8 {[%emt 0:00:43]} 46. b6 {[%emt 0:00:15]} Ne7 {[%emt 0:00:09]} 47. b7 {[%emt 0:00:13]} Nc6 {[%emt 0:00:10]} 48. Rb6 {[%emt 0:00:15]} Nb8 {[%emt 0:00:19]} 49. a5 {[%emt 0:00:19]} Rd8 {[%emt 0:00:24]} 50. Nc5 {[%emt 0:00:13]} Rd5 {[%emt 0:00:13]} 51. Rb5 {[%emt 0:00:57]} Kf6 {[%emt 0:01:33]} 1-0

[Event "55th Rubinstein Memorial-C 2019"]
[Site "Polanica-Zdroj"]
[Date "2019.08.23"]
[Round "7.18"]
[White "Kozlowski, Andrzej"]
[Black "Szydelko, Michal"]
[Result "0-1"]
[ECO "A00"]
[WhiteElo "1566"]
[BlackElo "1752"]
[Annotator "NA"]
[PlyCount "78"]
[EventDate "2019.08.17"]
[EventType "swiss"]
[EventCountry "POL"]
[SourceTitle "playchess.com"]
[Source "ChessBase"]
[SourceQuality "1"]
[TimeControl "40/5400+30:1800+30"]

1. e3 {[%emt 0:00:00]} e5 {[%emt 0:00:22]} 2. d4 {[%emt 0:00:00]} exd4 {[%emt 0:00:10]} 3. exd4 {[%emt 0:00:00]} d5 {[%emt 0:00:13]} 4. Bd3 {[%emt 0:00:00]} Bd6 {[%emt 0:00:15]} 5. Nc3 {[%emt 0:00:10]} c6 {[%emt 0:00:22]} 6. Nge2 {[%emt 0:00:24]} Ne7 {[%emt 0:00:31]} 7. Bf4 {[%emt 0:00:52]} O-O {[%emt 0:00:46]} 8. Qd2 {[%emt 0:00:36]} Bf5 {[%emt 0:02:33]} 9. Bxf5 {[%emt 0:02:39]} Nxf5 {[%emt 0:00:09]} 10. O-O-O {[%emt 0:00:30]} Qc7 {[%emt 0:06:41]} 11. Rde1 {[%emt 0:07:18]} Nd7 {[%emt 0:01:50]} 12. g3 {[%emt 0:01:34]} b5 {[%emt 0:04:20]} 13. f3 {[%emt 0:05:00]} a5 {[%emt 0:05:52]} 14. Qd3 {[%emt 0:02:56]} Ne7 {[%emt 0:02:07]} 15. Bxd6 {[%emt 0:02:53]} Qxd6 {[%emt 0:00:06]} 16. Nf4 {[%emt 0:01:31]} Rfe8 {[%emt 0:03:39]} 17. Re2 {[%emt 0:01:10]} Ng6 {[%emt 0:01:02]} 18. Nh3 {[%emt 0:06:14]} Nb6 {[%emt 0:04:40]} 19. Rhe1 {[%emt 0:01:30]} Reb8 {[%emt 0:01:55]} 20. f4 {[%emt 0:02:38]} b4 {[%emt 0:01:20]} 21. Nd1 {[%emt 0:01:40]} a4 {[%emt 0:02:39]} 22. f5 {[%emt 0:02:41]} Nf8 {[%emt 0:01:42]} 23. Re7 {[%emt 0:02:36]} b3 {[%emt 0:01:27]} 24. a3 {[%emt 0:03:52]} bxc2 {[%emt 0:00:38]} 25. Qxc2 {[%emt 0:03:53]} Nc4 {[%emt 0:00:23]} 26. Ng5 {[%emt 0:01:15]} Qh6 {[%emt 0:00:56]} 27. h4 {[%emt 0:01:57]} f6 {[%emt 0:01:00]} 28. R1e6 {[%emt 0:04:50]} Nxe6 {[%emt 0:00:47]} 29. Rxe6 {[%emt 0:00:41]} Re8 {[%emt 0:00:43]} 30. Qe2 {[%emt 0:00:27]} Kf8 {[%emt 0:00:46]} 31. Kc2 {[%emt 0:03:08]} fxg5 {[%emt 0:00:31]} 32. Qg4 {[%emt 0:01:14]} Rxe6 {[%emt 0:00:24]} 33. fxe6 {[%emt 0:00:35]} gxh4 {[%emt 0:02:00]} 34. Qf5+ {[%emt 0:00:43]} Qf6 {[%emt 0:01:23]} 35. Qxh7 {[%emt 0:00:39]} Qxe6 {[%emt 0:01:22]} 36. Qh8+ {[%emt 0:01:11]} Ke7 {[%emt 0:01:48]} 37. Qxa8 {[%emt 0:01:33]} Qe2+ {[%emt 0:00:05]} 38. Kb1 {[%emt 0:00:56]} Qxd1+ {[%emt 0:00:04]} 39. Ka2 {[%emt 0:00:08]} Qb3+ {[%emt 0:00:34]} 0-1

[Event "55th Rubinstein Memorial-C 2019"]
[Site "Polanica-Zdroj"]
[Date "2019.08.23"]
[Round "7.19"]
[White "Lewandowski, Witold"]
[Black "Gajzner, Ryszard"]
[Result "0-1"]
[ECO "B36"]
[WhiteElo "1542"]
[BlackElo "1740"]
[Annotator "NA"]
[PlyCount "62"]
[EventDate "2019.08.17"]
[EventType "swiss"]
[EventCountry "POL"]
[SourceTitle "playchess.com"]
[Source "ChessBase"]
[SourceQuality "1"]
[TimeControl "40/5400+30:1800+30"]

1. e4 {[%emt 0:00:00]} c5 {[%emt 0:00:00]} 2. Nf3 {[%emt 0:00:00]} g6 {[%emt 0:00:00]} 3. d4 {[%emt 0:00:56]} cxd4 {[%emt 0:00:00]} 4. Nxd4 {[%emt 0:00:05]} Nc6 {[%emt 0:00:00]} 5. c4 {[%emt 0:01:39]} Nf6 {[%emt 0:00:00]} 6. Nc3 {[%emt 0:00:07]} d6 {[%emt 0:00:00]} 7. Be3 {[%emt 0:00:41]} Ng4 {[%emt 0:00:10]} 8. Bc1 {[%emt 0:04:06]} Qb6 {[%emt 0:00:33]} 9. Be3 {[%emt 0:10:27]} Nxe3 {[%emt 0:00:13]} 10. fxe3 {[%emt 0:00:05]} Bg7 {[%emt 0:00:52]} 11. Nd5 {[%emt 0:04:45]} Qd8 {[%emt 0:05:11]} 12. Be2 {[%emt 0:04:58]} O-O {[%emt 0:03:29]} 13. O-O {[%emt 0:01:18]} e6 {[%emt 0:01:01]} 14. Nc3 {[%emt 0:02:02]} Ne5 {[%emt 0:10:20]} 15. Ndb5 {[%emt 0:04:00]} Qb6 {[%emt 0:01:59]} 16. Qxd6 {[%emt 0:04:22]} Qxe3+ {[%emt 0:01:37]} 17. Kh1 {[%emt 0:00:18]} Bd7 {[%emt 0:00:45]} 18. Na3 {[%emt 0:10:04]} Bc6 {[%emt 0:02:42]} 19. Nc2 {[%emt 0:02:01]} Qg5 {[%emt 0:01:54]} 20. Rad1 {[%emt 0:08:10]} Rad8 {[%emt 0:08:01]} 21. Qa3 {[%emt 0:07:33]} Rxd1 {[%emt 0:04:34]} 22. Rxd1 {[%emt 0:00:10]} Ng4 {[%emt 0:01:25]} 23. Bxg4 {[%emt 0:02:40]} Qxg4 {[%emt 0:00:06]} 24. Ne3 {[%emt 0:05:12]} Qg5 {[%emt 0:01:56]} 25. Qxa7 {[%emt 0:00:54]} f5 {[%emt 0:00:18]} 26. exf5 {[%emt 0:04:57]} gxf5 {[%emt 0:00:13]} 27. Qc5 {[%emt 0:03:16]} Qg6 {[%emt 0:01:52]} 28. Qe7 {[%emt 0:08:54]} f4 {[%emt 0:00:54]} 29. Ned5 {[%emt 0:00:10]} Bxc3 {[%emt 0:01:11]} 30. bxc3 {[%emt 0:01:42]} exd5 {[%emt 0:00:23]} 31. cxd5 {[%emt 0:00:06]} Bxd5 {[%emt 0:00:22]} 0-1

[Event "55th Rubinstein Memorial-C 2019"]
[Site "Polanica-Zdroj"]
[Date "2019.08.23"]
[Round "7.20"]
[White "Burdzicki, Jan"]
[Black "Wilgosz, Tomasz"]
[Result "1-0"]
[ECO "C00"]
[WhiteElo "1716"]
[BlackElo "1513"]
[Annotator "NA"]
[PlyCount "115"]
[EventDate "2019.08.17"]
[EventType "swiss"]
[EventCountry "POL"]
[SourceTitle "playchess.com"]
[Source "ChessBase"]
[SourceQuality "1"]
[TimeControl "40/5400+30:1800+30"]

1. e4 {[%emt 0:10:03]} e6 {[%emt 0:00:00]} 2. b3 {[%emt 0:00:05]} d5 {[%emt 0:00:43]} 3. Bb2 {[%emt 0:00:15]} dxe4 {[%emt 0:01:31]} 4. Nc3 {[%emt 0:00:03]} f5 {[%emt 0:04:12]} 5. d3 {[%emt 0:01:33]} exd3 {[%emt 0:02:03]} 6. Bxd3 {[%emt 0:00:02]} Bb4 {[%emt 0:04:43]} 7. Qe2 {[%emt 0:06:49]} Qe7 {[%emt 0:03:37]} 8. a3 {[%emt 0:08:35]} Bxc3+ {[%emt 0:02:10]} 9. Bxc3 {[%emt 0:00:07]} Nc6 {[%emt 0:00:51]} 10. Bxf5 {[%emt 0:01:19]} Nf6 {[%emt 0:04:47]} 11. Bd3 {[%emt 0:06:03]} O-O {[%emt 0:01:23]} 12. Bb2 {[%emt 0:12:06]} Nd5 {[%emt 0:05:32]} 13. g3 {[%emt 0:05:10]} Qf7 {[%emt 0:04:20]} 14. Nh3 {[%emt 0:04:12]} h6 {[%emt 0:00:57]} 15. c4 {[%emt 0:06:23]} e5 {[%emt 0:05:25]} 16. cxd5 {[%emt 0:05:22]} Nd4 {[%emt 0:00:32]} 17. Bxd4 {[%emt 0:20:51]} exd4 {[%emt 0:00:22]} 18. Nf4 {[%emt 0:01:19]} Re8 {[%emt 0:01:44]} 19. Be4 {[%emt 0:01:54]} g5 {[%emt 0:06:03]} 20. Nd3 {[%emt 0:07:09]} Bf5 {[%emt 0:00:37]} 21. f3 {[%emt 0:00:08]} g4 {[%emt 0:00:13]} 22. O-O {[%emt 0:00:57]} gxf3 {[%emt 0:00:23]} 23. Qxf3 {[%emt 0:00:06]} Rxe4 {[%emt 0:03:52]} 24. Qxf5 {[%emt 0:00:03]} Qxf5 {[%emt 0:00:35]} 25. Rxf5 {[%emt 0:00:00]} Re3 {[%emt 0:00:19]} 26. Rd1 {[%emt 0:01:17]} Rd8 {[%emt 0:00:36]} 27. a4 {[%emt 0:00:31]} Kg7 {[%emt 0:00:49]} 28. Re5 {[%emt 0:00:52]} Rxe5 {[%emt 0:00:20]} 29. Nxe5 {[%emt 0:00:00]} Rxd5 {[%emt 0:01:00]} 30. Nd3 {[%emt 0:00:36]} c5 {[%emt 0:00:23]} 31. Re1 {[%emt 0:00:20]} Kf6 {[%emt 0:01:33]} 32. Re8 {[%emt 0:00:21]} b6 {[%emt 0:01:06]} 33. Rh8 {[%emt 0:00:47]} Kg7 {[%emt 0:00:30]} 34. Rc8 {[%emt 0:00:40]} Rd7 {[%emt 0:01:03]} 35. Kf2 {[%emt 0:00:17]} Re7 {[%emt 0:01:41]} 36. Nxc5 {[%emt 0:01:07]} bxc5 {[%emt 0:00:51]} 37. Rxc5 {[%emt 0:00:01]} Rb7 {[%emt 0:00:46]} 38. Rb5 {[%emt 0:00:19]} Rxb5 {[%emt 0:00:52]} 39. axb5 {[%emt 0:00:01]} Kf6 {[%emt 0:00:34]} 40. Ke2 {[%emt 0:00:27]} Kf5 {[%emt 0:02:02]} 41. Kf3 {[%emt 0:30:36]} d3 {[%emt 0:30:43]} 42. Ke3 {[%emt 0:00:22]} Kg4 {[%emt 0:00:15]} 43. Kxd3 {[%emt 0:00:15]} Kh3 {[%emt 0:00:06]} 44. Ke3 {[%emt 0:00:16]} Kxh2 {[%emt 0:00:23]} 45. Kf4 {[%emt 0:02:06]} Kh3 {[%emt 0:01:32]} 46. Kf3 {[%emt 0:00:39]} Kh2 {[%emt 0:00:11]} 47. Kg4 {[%emt 0:00:20]} Kg2 {[%emt 0:02:21]} 48. Kh4 {[%emt 0:00:33]} Kf3 {[%emt 0:00:30]} 49. Kh3 {[%emt 0:00:23]} Kf2 {[%emt 0:00:28]} 50. g4 {[%emt 0:00:40]} Ke3 {[%emt 0:03:34]} 51. Kh4 {[%emt 0:00:12]} Kf4 {[%emt 0:00:38]} 52. Kh5 {[%emt 0:00:09]} Kf3 {[%emt 0:00:25]} 53. b4 {[%emt 0:00:05]} Kf4 {[%emt 0:00:40]} 54. b6 {[%emt 0:01:07]} axb6 {[%emt 0:00:21]} 55. b5 {[%emt 0:00:00]} Kf3 {[%emt 0:02:58]} 56. Kxh6 {[%emt 0:00:00]} Kxg4 {[%emt 0:00:08]} 57. Kg6 {[%emt 0:00:00]} Kf4 {[%emt 0:02:22]} 58. Kf6 {[%emt 0:00:00] Kg5+} 1-0

[Event "55th Rubinstein Memorial-C 2019"]
[Site "Polanica-Zdroj"]
[Date "2019.08.23"]
[Round "7.21"]
[White "Maslo, Slawomir"]
[Black "Hasterok, Lukasz"]
[Result "1-0"]
[ECO "A06"]
[WhiteElo "1687"]
[BlackElo "1531"]
[Annotator "NA"]
[PlyCount "87"]
[EventDate "2019.08.17"]
[EventType "swiss"]
[EventCountry "POL"]
[SourceTitle "playchess.com"]
[Source "ChessBase"]
[SourceQuality "1"]
[TimeControl "40/5400+30:1800+30"]

1. Nf3 {[%emt 0:03:51]} d5 {[%emt 0:01:38]} 2. b3 {[%emt 0:00:25]} Nf6 {[%emt 0:00:33]} 3. e3 {[%emt 0:00:21]} Bg4 {[%emt 0:01:49]} 4. d4 {[%emt 0:01:22]} Nbd7 {[%emt 0:01:13]} 5. Bb2 {[%emt 0:01:40]} e6 {[%emt 0:01:04]} 6. Be2 {[%emt 0:00:27]} Bd6 {[%emt 0:03:55]} 7. Nbd2 {[%emt 0:01:16]} h6 {[%emt 0:01:46]} 8. O-O {[%emt 0:00:28]} c6 {[%emt 0:00:13]} 9. c4 {[%emt 0:00:29]} O-O {[%emt 0:00:29]} 10. Bd3 {[%emt 0:00:25]} Re8 {[%emt 0:03:04]} 11. Qc2 {[%emt 0:01:49]} Bxf3 {[%emt 0:00:43]} 12. Nxf3 {[%emt 0:00:24]} e5 {[%emt 0:00:56]} 13. dxe5 {[%emt 0:01:03]} Nxe5 {[%emt 0:00:12]} 14. Nxe5 {[%emt 0:06:49]} Bxe5 {[%emt 0:00:17]} 15. Bxe5 {[%emt 0:04:10]} Rxe5 {[%emt 0:00:09]} 16. Rfd1 {[%emt 0:00:22]} Qe7 {[%emt 0:02:16]} 17. cxd5 {[%emt 0:02:47]} Nxd5 {[%emt 0:01:13]} 18. Bc4 {[%emt 0:00:24]} Nf6 {[%emt 0:19:03]} 19. Rd4 {[%emt 0:03:21]} b5 {[%emt 0:01:32]} 20. Bf1 {[%emt 0:05:16]} c5 {[%emt 0:00:15]} 21. Rd3 {[%emt 0:03:13]} Qc7 {[%emt 0:01:30]} 22. Rad1 {[%emt 0:03:34]} Re6 {[%emt 0:03:26]} 23. g3 {[%emt 0:03:18]} Rae8 {[%emt 0:02:43]} 24. Bh3 {[%emt 0:01:03]} R6e7 {[%emt 0:01:21]} 25. Bg2 {[%emt 0:06:46]} g6 {[%emt 0:08:12]} 26. Rc1 {[%emt 0:03:11]} Nd7 {[%emt 0:00:58]} 27. Rcd1 {[%emt 0:05:16]} Nb6 {[%emt 0:01:17]} 28. Rd6 {[%emt 0:06:13]} Re6 {[%emt 0:00:33]} 29. R6d2 {[%emt 0:04:17]} Qe7 {[%emt 0:07:26]} 30. Bh3 {[%emt 0:03:38]} Re5 {[%emt 0:02:12]} 31. Bd7 {[%emt 0:05:19]} Rd8 {[%emt 0:03:18]} 32. Bxb5 {[%emt 0:00:53]} Rxd2 {[%emt 0:00:18]} 33. Qxd2 {[%emt 0:00:42]} Rd5 {[%emt 0:00:21]} 34. Qc2 {[%emt 0:00:55]} Qd6 {[%emt 0:00:46]} 35. Rxd5 {[%emt 0:02:09]} Qxd5 {[%emt 0:00:06]} 36. a4 {[%emt 0:00:22]} Na8 {[%emt 0:01:01]} 37. Bc4 {[%emt 0:00:21]} Qd6 {[%emt 0:00:20]} 38. Qe4 {[%emt 0:00:52]} Nc7 {[%emt 0:00:13]} 39. a5 {[%emt 0:00:33]} a6 {[%emt 0:00:47]} 40. Qf3 {[%emt 0:01:23]} Ne6 {[%emt 0:01:40]} 41. Qa8+ {[%emt 0:31:51]} Kg7 {[%emt 0:30:07]} 42. Qxa6 {[%emt 0:00:31]} Qd1+ {[%emt 0:00:31]} 43. Kg2 {[%emt 0:00:37]} Ng5 {[%emt 0:00:26]} 44. Qb7 {[%emt 0:00:31]} 1-0

[Event "55th Rubinstein Memorial-C 2019"]
[Site "Polanica-Zdroj"]
[Date "2019.08.23"]
[Round "7.22"]
[White "Topola, Rafal"]
[Black "Ursnik, Patryk"]
[Result "0-1"]
[ECO "B33"]
[WhiteElo "1660"]
[BlackElo "1497"]
[Annotator "NA"]
[PlyCount "106"]
[EventDate "2019.08.17"]
[EventType "swiss"]
[EventCountry "POL"]
[SourceTitle "playchess.com"]
[Source "ChessBase"]
[SourceQuality "1"]
[TimeControl "40/5400+30:1800+30"]

1. e4 {[%emt 0:00:00]} c5 {[%emt 0:05:32]} 2. Nf3 {[%emt 0:00:00]} Nc6 {[%emt 0:00:06]} 3. d4 {[%emt 0:00:00]} cxd4 {[%emt 0:00:08]} 4. Nxd4 {[%emt 0:00:00]} Nf6 {[%emt 0:00:13]} 5. Nc3 {[%emt 0:00:00]} e5 {[%emt 0:00:13]} 6. Ndb5 {[%emt 0:00:38]} d6 {[%emt 0:00:08]} 7. Bg5 {[%emt 0:00:15]} a6 {[%emt 0:00:10]} 8. Na3 {[%emt 0:00:08]} b5 {[%emt 0:00:05]} 9. Bxf6 {[%emt 0:00:24]} gxf6 {[%emt 0:00:09]} 10. Nd5 {[%emt 0:00:06]} Bg7 {[%emt 0:00:07]} 11. g3 {[%emt 0:00:45]} O-O {[%emt 0:00:46]} 12. Bg2 {[%emt 0:01:06]} Rb8 {[%emt 0:02:07]} 13. O-O {[%emt 0:01:34]} Ne7 {[%emt 0:00:59]} 14. Nxe7+ {[%emt 0:06:48]} Qxe7 {[%emt 0:00:12]} 15. c3 {[%emt 0:00:03]} f5 {[%emt 0:00:22]} 16. Nc2 {[%emt 0:07:42]} fxe4 {[%emt 0:04:07]} 17. Bxe4 {[%emt 0:01:38]} f5 {[%emt 0:01:39]} 18. Bd5+ {[%emt 0:00:28]} Kh8 {[%emt 0:01:06]} 19. Nb4 {[%emt 0:01:44]} Qf6 {[%emt 0:03:37]} 20. Qf3 {[%emt 0:14:02]} f4 {[%emt 0:07:33]} 21. Be4 {[%emt 0:04:18]} Qh6 {[%emt 0:00:31]} 22. g4 {[%emt 0:03:02]} Qg5 {[%emt 0:00:38]} 23. Qh3 {[%emt 0:02:10]} Bh6 {[%emt 0:03:34]} 24. f3 {[%emt 0:00:09]} Bf5 {[%emt 0:03:13]} 25. Bxf5 {[%emt 0:04:10]} Rxf5 {[%emt 0:00:07]} 26. Nxa6 {[%emt 0:01:37]} Rg8 {[%emt 0:00:48]} 27. Kh1 {[%emt 0:03:16]} Rf7 {[%emt 0:00:42]} 28. Rad1 {[%emt 0:02:02]} Bf8 {[%emt 0:00:47]} 29. Nb4 {[%emt 0:01:53]} Rg6 {[%emt 0:00:34]} 30. Rd5 {[%emt 0:09:45]} Qe7 {[%emt 0:03:53]} 31. Re1 {[%emt 0:03:31]} Re6 {[%emt 0:04:05]} 32. Re4 {[%emt 0:04:09]} h5 {[%emt 0:13:11]} 33. Rd2 {[%emt 0:07:37]} Rh7 {[%emt 0:00:44]} 34. gxh5 {[%emt 0:01:24]} Reh6 {[%emt 0:01:10]} 35. Qg4 {[%emt 0:02:02]} Rxh5 {[%emt 0:04:56]} 36. Rg2 {[%emt 0:00:34]} Qf7 {[%emt 0:00:26]} 37. Ree2 {[%emt 0:03:03]} Rg7 {[%emt 0:04:57]} 38. Qc8 {[%emt 0:00:41]} Rxg2 {[%emt 0:00:17]} 39. Kxg2 {[%emt 0:00:28]} Rf5 {[%emt 0:11:28]} 40. Qa8 {[%emt 0:02:40]} Kh7 {[%emt 0:03:40]} 41. Qe4 {[%emt 0:30:37]} Kh6 {[%emt 0:30:48]} 42. Kh1 {[%emt 0:00:25]} Rg5 {[%emt 0:01:00]} 43. Rg2 {[%emt 0:00:29]} Rxg2 {[%emt 0:00:30]} 44. Kxg2 {[%emt 0:00:01]} Be7 {[%emt 0:01:20]} 45. Qd5 {[%emt 0:01:09]} Qg6+ {[%emt 0:00:13]} 46. Kh3 {[%emt 0:01:07]} Qf5+ {[%emt 0:03:58]} 47. Kg2 {[%emt 0:00:14]} Qg6+ {[%emt 0:00:11]} 48. Kh3 {[%emt 0:05:22]} Qh5+ {[%emt 0:06:47]} 49. Kg2 {[%emt 0:00:09]} Qg6+ {[%emt 0:00:07]} 50. Kf2 {[%emt 0:02:04]} Bh4+ {[%emt 0:02:28]} 51. Ke2 {[%emt 0:00:13]} Qg2+ {[%emt 0:02:01]} 52. Kd3 {[%emt 0:00:01]} Bf6 {[%emt 0:01:40]} 53. Ke4 {[%emt 0:01:19]} Qg6# {[%emt 0:00:29]} 0-1

[Event "55th Rubinstein Memorial-C 2019"]
[Site "Polanica-Zdroj"]
[Date "2019.08.23"]
[Round "7.23"]
[White "Wianecki, Mateusz"]
[Black "Brzozowski, Pawel"]
[Result "1/2-1/2"]
[ECO "A01"]
[WhiteElo "1634"]
[BlackElo "1496"]
[Annotator "NA"]
[PlyCount "81"]
[EventDate "2019.08.17"]
[EventType "swiss"]
[EventCountry "POL"]
[SourceTitle "playchess.com"]
[Source "ChessBase"]
[SourceQuality "1"]
[TimeControl "40/5400+30:1800+30"]

1. b3 e5 2. Bb2 Nc6 3. e3 Nf6 4. c4 d6 5. d3 g6 6. Nc3 Bg7 7. Nf3 Be6 8. Be2 O-O 9. a3 Nd7 10. d4 Bg4 11. Nd5 exd4 12. exd4 Nf6 13. Ne3 Re8 14. O-O Bxf3 15. Bxf3 Ne4 16. Qd3 Ng5 17. Bxc6 bxc6 18. f4 Ne4 19. f5 Qg5 20. Rf3 Nc5 21. dxc5 Bxb2 22. Ra2 Bc1 23. Nf1 dxc5 24. fxg6 hxg6 25. Rg3 Qe5 26. Rf2 Rad8 27. Qf3 Qe6 28. h4 Rd4 29. Qc3 Qe1 30. Rgf3 Qxc3 31. Rxc3 Bxa3 32. Rcf3 Re6 33. Rxf7 Rxh4 34. Rxc7 Rh7 35. Rc8+ Kg7 36. Rf3 Bb2 37. Rc7+ Kg8 38. Rc8+ Kg7 39. Rc7+ Kg8 40. Rc8+ Kg7 41. Rc7+ 1/2-1/2